bitfinex-derivatives/quotes_ETHF0:USTF0_20250831
["timestamp","ask_amount","ask_price","bid_price","bid_amount"]
[1756679922925,3.6816,4459.4,4458.4,0.105]
[1756679923121,0.03903601,4460.7,4458.2,5.21189514]
[1756679923122,3.6816,4458.8,4458.7,0.273]
[1756679923325,3.87637801,4458.8,4458.7,0.273]
[1756679924028,3.6816,4458.8,4458.7,0.273]
[1756679925328,3.6816,4458.8,4458.7,0.168]
[1756679926028,3.87591817,4458.8,4458.7,2.55754799]
[1756679927325,3.87584161,4458.8,4458.7,2.55754799]
[1756679927626,0.4738,4457.7,4457.6,0.273]
[1756679927926,0.1978,4457.2,4457.1,0.395]
[1756679928124,0.66804161,4457.2,4457.1,0.168]
[1756679928524,0.66804161,4457.2,4457.1,0.273]
[1756679930932,0.66747823,4457.2,4457.1,0.273]
[1756679931534,0.66736725,4457.2,4457.1,0.273]
[1756679931734,0.66736733,4457.2,4457.1,0.273]
[1756679932236,0.66736733,4457.2,4456.8,0.332]
[1756679932435,0.4738,4456.9,4456.8,0.5]
[1756679932630,0.66736733,4456.9,4456.8,0.273]
[1756679933135,0.66736733,4456.9,4456.7,0.227]
[1756679933334,3.2078,4457.4,4456.7,0.5]
[1756679933335,0.66736733,4456.8,4456.7,0.5]
[1756679934634,0.66705502,4456.8,4456.7,0.5]
[1756679935033,0.66705502,4456.8,4456.7,3.05754799]
[1756679935535,0.66705502,4456.8,4456.7,2.72554799]
[1756679936434,0.66705502,4456.8,4456.7,2.55754799]
[1756679937537,0.66705502,4456.8,4456.7,2.83054799]
[1756679941137,0.66678955,4456.8,4456.7,2.83054799]
[1756679941340,0.6667897,4456.8,4456.7,2.83054799]
[1756679942734,0.6667897,4456.8,4456.7,2.72554799]
[1756679943236,0.6667897,4456.8,4456.7,2.83054799]
[1756679944641,0.6667897,4456.8,4456.7,2.55754799]
[1756679946938,0.6667897,4456.8,4456.7,2.66254799]
[1756679947440,0.6667897,4456.8,4456.7,2.83054799]
[1756679951545,0.6753966,4456.8,4456.7,2.83054799]
[1756679952543,0.67569312,4456.8,4456.7,2.83054799]
[1756679956243,1.25697715,4456.8,4456.7,2.83054799]
[1756679956548,1.25697715,4456.8,4456.7,2.61170485]
[1756679958652,1.25747463,4456.8,4456.7,2.61170485]
[1756679962354,1.25767418,4456.8,4456.7,2.61170485]
[1756679962850,1.25767546,4456.8,4456.7,2.61170485]
[1756679966353,1.25767546,4456.8,4456.7,2.3928657]
[1756679968153,1.25767546,4456.8,4456.7,2.1198657]
[1756679968754,1.25767546,4456.8,4456.7,2.3928657]
[1756679970351,1.25767546,4456.8,4456.7,2.1198657]
[1756679973156,1.243231,4456.8,4456.7,2.1198657]
[1756679973747,1.24321485,4456.8,4456.7,2.1198657]
[1756679973947,5.46759485,4456.8,4456.7,2.1198657]
[1756679974858,5.27946403,4456.8,4456.7,2.1198657]
[1756679975756,5.05508403,4456.8,4456.7,2.1198657]
[1756679976458,5.05508403,4456.8,4456.7,1.90098909]
[1756679977060,5.05508403,4456.8,4455.8,0.105]
[1756679977259,1.20729448,4457.1,4455.4,0.226]
[1756679977260,0.4808,4456.1,4456.0,0.168]
[1756679977461,0.7068,4456.1,4456.0,0.273]
[1756679980063,0.7068,4456.1,4456.0,2.83054799]
[1756679985770,0.4808,4456.1,4456.0,2.83054799]
[1756679985969,0.7068,4456.1,4456.0,2.83054799]
[1756679988473,0.4808,4456.1,4456.0,2.83054799]
[1756679988675,0.7068,4456.1,4456.0,2.83054799]
[1756679999781,1.29036067,4456.1,4455.4,0.1061]
[1756679999989,3.7071,4455.5,4454.9,0.1061]
[1756680000178,3.7071,4455.0,4454.9,0.2758]
[1756680000384,3.9331,4455.0,4454.9,0.2758]
[1756680006089,3.5078,4455.0,4454.9,0.2758]
[1756680006394,3.9331,4455.0,4454.9,0.2758]
[1756680011999,3.9331,4455.0,4454.2,0.1061]
[1756680012297,3.9331,4455.0,4454.3,0.1061]
[1756680012489,3.9331,4455.0,4454.3,0.22449]
[1756680012686,3.9331,4455.0,4454.4,0.1061]
[1756680012891,3.9331,4455.0,4454.1,0.20937447]
[1756680013093,0.1868,4454.2,4454.1,0.10327447]
[1756680013298,0.476,4454.2,4454.1,0.10327447]
[1756680013688,0.476,4454.2,4452.8,0.17684909]
[1756680013689,4.476,4454.2,4452.9,3.2078]
[1756680013891,0.1122,4455.2,4452.9,3.2078]
[1756680013892,3.2078,4453.9,4452.9,3.2078]
[1756680014101,0.2892,4453.8,4452.9,3.2078]
[1756680014396,0.1868,4453.1,4453.0,0.2759]
[1756680014596,0.476,4453.1,4453.0,0.2759]
[1756680015198,0.1868,4453.1,4453.0,0.2759]
[1756680015390,0.227,4453.3,4453.2,0.1698]
[1756680015595,0.4138,4453.3,4453.2,0.2759]
[1756680015795,0.703,4453.3,4453.2,0.2759]
[1756680016701,0.476,4453.3,4453.2,0.2759]
[1756680017596,3.2078,4453.9,4453.2,0.39436]
[1756680017800,0.2892,4454.1,4453.8,0.2759]
[1756680018005,3.2078,4454.5,4454.1,0.1698]
[1756680018006,0.2892,4454.2,4454.1,0.1698]
[1756680018302,0.2892,4454.2,4454.1,0.2759]
[1756680018303,0.476,4454.2,4454.1,0.2759]
[1756680018903,0.476,4454.2,4454.1,0.1698]
[1756680019205,0.1868,4454.2,4453.5,0.1061]
[1756680019398,0.476,4453.6,4453.5,0.2759]
[1756680019996,3.2078,4454.5,4453.4,3.2078]
[1756680019997,0.227,4454.2,4453.6,0.1061]
[1756680020196,0.703,4454.2,4454.1,0.2759]
[1756680020393,0.476,4454.2,4454.1,0.2759]
[1756680021805,0.476,4453.6,4453.5,0.2759]
[1756680022003,0.476,4453.6,4453.1,0.1061]
[1756680022205,0.476,4453.6,4453.0,0.45156]
[1756680022400,0.476,4453.6,4453.1,0.1061]
[1756680022594,0.476,4453.6,4453.5,0.1698]
[1756680022796,0.476,4453.6,4453.5,0.2759]
[1756680023505,0.1868,4453.6,4453.0,0.1061]
[1756680023697,0.2892,4453.5,4452.9,3.2078]
[1756680023902,0.2892,4453.9,4453.0,0.1061]
[1756680031810,0.1868,4453.1,4453.0,0.2748]
[1756680032012,0.476,4453.1,4453.0,0.2748]
[1756680033809,0.2892,4453.9,4453.1,0.1054]
[1756680034816,0.1868,4453.2,4453.1,0.2741]
[1756680035114,0.476,4453.2,4453.1,0.2741]
[1756680035312,0.1868,4453.3,4453.2,0.2741]
[1756680035511,0.476,4453.3,4453.2,0.1687]
[1756680035813,0.476,4453.3,4453.2,0.5011]
[1756680038517,0.476,4453.3,4453.2,0.1054]
[1756680038716,0.476,4453.3,4453.2,0.2753]
[1756680039918,0.1868,4453.3,4452.9,3.2078]
[1756680040114,0.5026,4453.2,4453.1,0.5031]
[1756680041213,0.3392,4454.4,4453.1,0.5031]
[1756680041214,0.3049,4454.3,4453.1,4.45156]
[1756680041419,0.5026,4454.1,4454.0,0.1699]
[1756680041615,0.5026,4454.1,4454.0,0.2761]
[1756680046418,0.5026,4454.1,4454.0,0.3969]
[1756680047021,0.5026,4454.1,4454.0,0.5031]
[1756680047622,0.1122,4454.3,4454.0,0.5031]
[1756680047818,0.1122,4454.3,4454.2,0.2761]
[1756680047819,0.6148,4454.3,4454.2,0.2761]
[1756680048014,0.4171,4454.3,4454.2,0.2761]
[1756680048219,0.1122,4454.3,4454.2,0.2761]
[1756680049124,0.4171,4454.3,4454.2,0.2761]
[1756680049326,0.1122,4454.3,4454.2,4.2761]
[1756680049523,0.1122,4454.3,4454.2,4.90467]
[1756680049727,0.1122,4454.3,4454.2,4.68017]
[1756680050032,0.1122,4454.3,4454.2,4.2761]
[1756680050033,0.4171,4454.3,4454.2,4.2761]
[1756680050231,0.1122,4454.3,4454.2,4.2761]
[1756680050625,0.1122,4454.3,4454.2,4.90718]
[1756680053421,0.1122,4454.3,4454.2,0.90718]
[1756680054631,0.4171,4454.3,4454.2,0.5031]
[1756680054831,0.6148,4454.3,4454.2,0.90719]
[1756680056127,0.4171,4454.3,4454.2,0.90719]
[1756680059627,0.1122,4454.3,4454.2,0.90719]
[1756680060033,0.4171,4454.3,4454.2,0.68019]
[1756680060337,0.4171,4454.3,4454.2,0.90719]
[1756680062438,0.1977,4454.6,4454.5,0.1699]
[1756680062736,0.3049,4454.6,4454.5,4.11396]
[1756680063037,0.3049,4455.5,4454.5,4.00776]
[1756680063241,0.1122,4455.4,4454.6,0.1062]
[1756680063437,0.1122,4455.4,4454.5,3.83786]
[1756680063438,0.5026,4455.3,4455.2,0.2761]
[1756680063644,0.5026,4455.3,4455.2,0.5031]
[1756680064544,0.5026,4455.3,4455.2,0.9071]
[1756680065338,0.1122,4455.4,4455.3,0.40399]
[1756680065539,0.4171,4455.4,4455.3,0.2761]
[1756680065737,0.6148,4455.4,4455.3,0.2761]
[1756680066654,0.1977,4454.6,4454.5,3.4839]
[1756680066840,0.5026,4454.6,4454.5,3.4839]
[1756680067141,0.3049,4454.6,4454.5,3.7109]
[1756680067339,0.1977,4455.0,4454.9,0.2761]
[1756680067539,0.5026,4455.0,4454.9,3.7109]
[1756680073844,0.3133,4455.4,4455.3,0.1698]
[1756680074042,0.6151,4455.4,4455.3,0.503]
[1756680076046,0.414,4455.4,4455.3,0.503]
[1756680076641,0.6151,4455.4,4455.3,0.503]
[1756680077344,0.6151,4455.4,4455.3,0.90699]
[1756680077645,0.1122,4455.4,4455.3,0.90699]
[1756680078038,0.414,4455.4,4455.3,0.503]
[1756680078236,0.414,4455.4,4455.3,0.90699]
[1756680078436,0.1122,4455.4,4455.3,0.90699]
[1756680079242,0.414,4455.4,4455.3,0.90699]
[1756680079949,0.414,4455.4,4455.3,0.503]
[1756680080438,0.1122,4455.4,4455.3,0.503]
[1756680081147,0.414,4455.4,4455.3,0.503]
[1756680082653,0.1122,4455.4,4455.3,0.503]
[1756680083455,0.3018,4456.0,4455.3,0.503]
[1756680083456,0.5029,4456.0,4455.9,0.1698]
[1756680083652,0.5029,4456.0,4455.9,0.502]
[1756680087753,0.5029,4456.0,4455.9,0.226]
[1756680088459,0.5029,4456.0,4455.9,0.504]
[1756680089267,0.3018,4456.0,4455.9,0.504]
[1756680089660,0.5029,4456.0,4455.9,0.504]
[1756680091862,0.5029,4456.0,4455.9,0.1711]
[1756680092062,0.5029,4455.8,4455.7,3.2078]
[1756680092269,0.5029,4455.8,4455.7,3.5407]
[1756680092464,0.5029,4455.8,4455.7,3.2078]
[1756680092666,0.5029,4455.8,4455.7,3.4338]
[1756680093767,0.5029,4455.8,4455.7,3.7118]
[1756680093969,0.5029,4455.8,4455.7,4.11575]
[1756680095068,0.3018,4456.1,4456.0,0.1711]
[1756680095270,0.3018,4456.1,4456.0,0.504]
[1756680095666,0.3018,4456.1,4456.0,0.226]
[1756680095667,0.5029,4456.1,4456.0,0.226]
[1756680096770,0.5029,4455.8,4455.7,3.2078]
[1756680097067,0.5029,4455.3,4454.6,2.00409514]
[1756680097262,0.5029,4454.5,4454.4,3.2078]
[1756680097466,0.5029,4454.5,4454.4,3.4338]
[1756680098169,0.5029,4454.5,4454.4,3.6192]
[1756680098371,0.5029,4454.5,4454.4,3.9203]
[1756680098567,0.3029,4454.8,4454.4,3.6943]
[1756680098869,0.3029,4455.3,4454.6,0.3011]
[1756680099073,0.3029,4455.3,4454.7,0.226]
[1756680099265,0.2008,4454.9,4454.8,0.4881]
[1756680099466,0.5037,4454.9,4454.8,0.4881]
[1756680104273,0.5037,4455.4,4455.3,0.4881]
[1756680104475,0.5037,4455.4,4455.3,0.187]
[1756680104679,0.5037,4455.4,4455.2,0.226]
[1756680105369,0.5037,4455.4,4455.2,0.5271]
[1756680105569,0.3029,4455.4,4455.3,0.4881]
[1756680105773,0.5037,4455.4,4455.3,0.4881]
[1756680106871,0.5037,4455.4,4455.3,0.187]
[1756680107072,0.5037,4455.4,4455.3,0.413]
[1756680107876,0.3029,4455.3,4454.5,0.3011]
[1756680108077,0.3029,4455.3,4454.6,0.226]
[1756680108279,0.5037,4454.8,4454.7,0.4881]
[1756680110673,0.5037,4454.8,4454.7,0.7141]
[1756680111970,0.5037,4454.8,4454.7,0.413]
[1756680115378,0.5037,4454.8,4454.7,0.7141]
[1756680122781,0.1122,4455.0,4454.8,0.3011]
[1756680122982,0.1122,4455.0,4454.9,3.3948]
[1756680123275,0.1122,4455.0,4454.9,3.6959]
[1756680123479,0.4151,4455.0,4454.9,3.6959]
[1756680123680,0.6159,4455.0,4454.9,3.6959]
[1756680124984,0.4151,4455.0,4454.9,3.6959]
[1756680125280,0.1122,4455.0,4454.9,3.6959]
[1756680126684,0.4151,4455.0,4454.9,3.6959]
[1756680127085,0.1122,4455.0,4454.9,3.6959]
[1756680127786,0.6159,4455.0,4454.9,3.6959]
[1756680127987,0.6159,4455.0,4454.9,3.9219]
[1756680128186,0.1122,4455.0,4454.9,3.9219]
[1756680128486,0.1122,4455.0,4454.9,3.6959]
[1756680128685,0.5816,4455.0,4454.9,3.9219]
[1756680129383,0.5816,4455.0,4454.9,3.6959]
[1756680129584,0.5816,4455.0,4454.9,3.9219]
[1756680129986,0.5816,4455.0,4454.9,3.2078]
[1756680130187,0.5816,4455.0,4454.9,3.4338]
[1756680130588,0.5816,4455.0,4454.9,3.9298]
[1756680131386,0.1122,4455.0,4454.9,3.9298]
[1756680131789,0.5816,4455.0,4454.9,3.9298]
[1756680139093,0.1122,4455.0,4454.9,3.9298]
[1756680139296,0.398,4455.0,4454.9,3.9298]
[1756680141486,4.80607,4455.0,4454.5,2.00409514]
[1756680141689,0.4694,4454.1,4453.7,2.00409514]
[1756680141896,0.4694,4453.8,4453.7,0.722]
[1756680142587,0.1836,4453.2,4453.1,3.4097]
[1756680142795,0.4694,4453.2,4453.1,3.7038]
[1756680142994,0.4694,4453.2,4453.1,3.9298]
[1756680144401,0.2858,4454.3,4453.1,3.6357]
[1756680144601,0.2858,4454.3,4453.2,0.2941]
[1756680144798,0.2858,4454.3,4453.3,0.226]
[1756680145102,0.4694,4453.4,4453.3,0.722]
[1756680146292,0.4694,4453.4,4453.3,0.496]
[1756680146492,0.17610028,4455.2,4452.9,32.6211]
[1756680146493,0.1836,4453.2,4452.9,32.6211]
[1756680146694,0.2858,4453.0,4452.9,32.6211]
[1756680147000,0.2858,4453.0,4452.9,32.8471]
[1756680150300,0.1836,4452.7,4452.6,3.7038]
[1756680150501,0.4694,4452.7,4452.6,3.9298]
[1756680154704,0.4694,4452.7,4452.3,0.2941]
[1756680154898,0.4694,4452.2,4452.1,3.5019]
[1756680155105,0.4694,4452.2,4452.1,0.722]
[1756680158107,0.1836,4452.2,4451.6,3.5015]
[1756680158307,0.2935,4452.7,4451.8,0.2937]
[1756680158606,0.2935,4452.5,4451.8,0.2937]
[1756680158807,0.67496024,4452.4,4452.3,0.186]
[1756680159107,0.67496024,4452.4,4452.3,0.4797]
[1756680160904,0.2007,4451.7,4451.1,3.2078]
[1756680161104,0.2007,4451.3,4451.2,0.4797]
[1756680161506,0.4942,4451.3,4451.2,0.4797]
[1756680162102,0.4942,4451.1,4451.0,0.4797]
[1756680163512,0.4942,4451.1,4450.2,0.2937]
[1756680163513,0.4942,4450.6,4450.2,0.2937]
[1756680163707,0.18052537,4450.5,4450.2,0.2937]
[1756680164010,0.4942,4450.3,4450.2,0.186]
[1756680167308,0.4942,4450.3,4450.2,0.4797]
[1756680168507,0.2935,4450.9,4450.2,0.186]
[1756680168707,0.2935,4450.7,4450.4,0.4797]
[1756680168908,0.4942,4450.5,4450.4,0.4797]
[1756680169409,0.67461189,4450.5,4450.4,0.4797]
[1756680171712,0.38111189,4450.5,4450.0,0.2937]
[1756680171914,0.4942,4450.0,4449.9,3.6875]
[1756680178421,0.67491345,4450.0,4449.9,3.6875]
[1756680179517,0.67491345,4450.0,4449.9,3.9145]
[1756680180013,0.67491345,4450.0,4449.9,3.6875]
[1756680180216,0.47421345,4450.0,4449.9,3.6875]
[1756680180414,0.18071345,4450.0,4449.9,3.6875]
[1756680180614,0.1123,4450.2,4450.1,0.88416]
[1756680180813,3.5013,4451.1,4450.2,0.2937]
[1756680181013,0.67500189,4451.0,4450.9,0.4797]
[1756680181215,0.67500189,4451.0,4450.6,0.17]
[1756680181412,0.2007,4450.8,4450.6,0.17]
[1756680181623,0.47430189,4450.7,4450.6,0.17]
[1756680182524,0.18080189,4450.7,4450.6,0.17]
[1756680182723,0.18080189,4450.9,4450.6,0.17]
[1756680182926,0.18080189,4450.8,4450.6,0.17]
[1756680183130,0.18080189,4450.7,4450.6,0.17]
[1756680183327,0.18097361,4450.7,4450.6,0.17]
[1756680183631,0.2935,4450.9,4450.6,0.17]
[1756680183833,0.18097361,4450.8,4450.6,0.17]
[1756680184634,0.18116844,4450.7,4450.6,0.17]
[1756680184826,0.18116703,4450.7,4450.6,0.17]
[1756680185026,0.47466703,4450.7,4450.6,0.17]
[1756680185226,0.2935,4450.7,4450.6,0.17]
[1756680186137,0.1122,4451.3,4450.6,0.17]
[1756680186331,0.2935,4451.2,4450.6,0.17]
[1756680187030,0.2935,4451.2,4450.4,3.2078]
[1756680187228,0.2935,4451.2,4450.5,0.227]
[1756680188430,0.3045,4450.5,4449.0,3.2078]
[1756680188632,4.80854688,4451.1,4448.1,0.4986]
[1756680188633,3.2078,4449.4,4448.1,0.4986]
[1756680188929,32.361,4450.7,4448.6,0.4986]
[1756680188930,0.1962,4448.7,4448.6,0.4986]
[1756680189130,0.1962,4448.7,4448.1,0.053]
[1756680189131,3.389,4449.3,4449.1,0.4986]
[1756680189333,0.77927929,4449.2,4449.1,0.20632628]
[1756680189629,1.08377929,4449.2,4448.6,0.229]
[1756680189837,0.5007,4448.7,4448.6,0.423]
[1756680190932,0.1962,4448.7,4448.6,0.194]
[1756680191128,0.1962,4448.5,4448.4,3.2078]
[1756680191333,0.5007,4448.4,4448.3,0.194]
[1756680191533,0.5007,4448.4,4448.3,0.4986]
[1756680191740,0.1962,4448.4,4447.8,0.23]
[1756680192038,0.5007,4447.9,4447.8,0.424]
[1756680192238,0.1962,4447.9,4447.8,0.194]
[1756680192629,0.1962,4447.9,4447.8,0.4986]
[1756680192827,0.5007,4447.9,4447.8,0.4986]
[1756680196234,0.3045,4448.2,4447.8,0.4986]
[1756680196537,0.1962,4448.7,4448.6,0.4986]
[1756680197234,0.3045,4449.0,4448.7,0.3046]
[1756680197437,3.7085,4449.4,4449.3,0.4986]
[1756680197636,0.1675,4445.8,4445.6,1.87869514]
[1756680197837,0.3637,4444.9,4444.1,0.10350686]
[1756680198141,3.2078,4444.2,4444.1,0.29750686]
[1756680198642,3.2078,4444.2,4444.1,6.480802]
[1756680198841,3.2078,4444.7,4444.6,0.4986]
[1756680199041,1.57196905,4444.7,4444.6,0.4986]
[1756680199237,1.93566905,4444.7,4444.2,0.3046]
[1756680199442,0.60656419,4444.6,4444.5,0.4986]
[1756680199839,0.3637,4444.6,4444.5,0.4986]
[1756680200340,0.1962,4444.3,4444.2,0.194]
[1756680200541,0.1962,4444.3,4444.2,0.4986]
[1756680200943,0.1962,4444.3,4444.2,0.85023464]
[1756680201139,1.32910486,4444.7,4444.2,0.54563464]
[1756680201347,0.3637,4444.6,4444.5,0.4986]
[1756680201542,0.3637,4444.6,4444.5,0.85023464]
[1756680202440,32.371,4446.1,4444.5,0.85023464]
[1756680202441,3.2078,4445.2,4444.6,0.4986]
[1756680202745,3.2078,4445.7,4445.6,0.4986]
[1756680202941,3.2078,4445.7,4445.6,0.85023464]
[1756680203143,0.1675,4446.1,4445.6,0.85023464]
[1756680203344,0.99445534,4446.0,4445.9,0.4986]
[1756680203545,0.3637,4446.0,4445.9,0.85023464]
[1756680203745,0.1962,4446.0,4445.9,0.85023464]
[1756680204644,0.3637,4446.0,4445.9,0.85023464]
[1756680204844,3.2078,4446.2,4446.0,0.3046]
[1756680205045,3.2078,4446.2,4446.1,0.85023464]
[1756680205948,3.2078,4446.2,4446.1,0.4986]
[1756680206145,3.2078,4446.2,4446.1,0.84754936]
[1756680206538,0.1962,4447.3,4447.2,0.3862]
[1756680206747,0.5007,4447.3,4447.2,0.73514936]
[1756680207149,4.7427,4447.3,4446.1,0.242]
[1756680207342,0.5007,4446.3,4446.2,0.83581761]
[1756680207543,0.3045,4446.8,4446.3,0.3046]
[1756680207743,0.5007,4446.8,4446.7,0.4986]
[1756680207942,3.2078,4446.9,4446.7,0.194]
[1756680208142,3.7085,4446.9,4446.8,0.4986]
[1756680208343,0.90544,4446.9,4446.8,0.194]
[1756680209050,0.40474,4446.9,4446.8,0.194]
[1756680209539,0.90544,4446.9,4446.8,0.194]
[1756680210538,0.90544,4446.9,4446.8,0.3074]
[1756680211349,0.90544,4446.9,4446.8,3.84763292]
[1756680213951,0.90544,4446.9,4446.8,3.5152]
[1756680214646,0.40474,4446.9,4446.8,3.5152]
[1756680214853,0.40473,4447.1,4446.8,7.72482022]
[1756680215052,0.40473,4447.1,4447.0,0.2948]
[1756680215354,0.40473,4447.1,4447.0,0.5358]
[1756680215551,0.40473,4447.1,4447.0,0.85210729]
[1756680216154,0.40471,4447.3,4447.0,5.14343729]
[1756680216354,0.51689,4447.5,4447.4,0.1814]
[1756680216557,0.40469,4447.5,4447.4,0.5358]
[1756680217055,0.70919,4447.5,4447.4,0.5358]
[1756680218052,1.989198,4447.5,4447.4,0.5358]
[1756680218251,1.989198,4447.5,4447.4,0.31654043]
[1756680218854,1.684698,4447.5,4447.4,3.4488]
[1756680220954,1.965998,4447.5,4447.4,3.4488]
[1756680222462,1.684698,4447.5,4447.4,3.4488]
[1756680223865,1.965998,4447.5,4447.4,3.4488]
[1756680224756,1.561308,4447.5,4447.4,3.4488]
[1756680224956,1.684698,4447.5,4447.4,3.4488]
[1756680225456,1.965998,4447.5,4447.4,3.4488]
[1756680226158,2.166398,4447.5,4447.4,3.4488]
[1756680227859,2.166398,4447.5,4447.4,3.2078]
[1756680228062,2.166398,4447.5,4447.4,3.4478]
[1756680228261,2.166398,4447.5,4447.4,3.22853839]
[1756680231862,2.166398,4447.5,4447.4,0.24]
[1756680232362,2.80282476,4447.5,4447.4,0.24]
[1756680233359,2.11683476,4447.5,4447.4,0.239]
[1756680233557,2.39813476,4447.5,4447.4,0.239]
[1756680234967,0.88643,4447.0,4446.9,3.2078]
[1756680235167,0.88643,4447.0,4446.9,3.73226389]
[1756680236266,1.52416798,4447.0,4446.9,3.73226389]
[1756680236462,0.88643,4447.0,4446.9,3.73226389]
[1756680238369,0.88643,4447.0,4446.9,3.51297901]
[1756680238564,0.88643,4447.0,4446.9,3.22751512]
[1756680238766,0.88643,4447.0,4446.9,3.51335873]
[1756680240362,1.561308,4447.0,4446.9,3.51335873]
[1756680240561,1.280008,4447.0,4446.9,7.91809873]
[1756680242368,0.1122,4447.9,4447.3,1.01177]
[1756680242562,3.2078,4449.9,4448.2,0.40462]
[1756680242563,0.4817,4449.4,4448.2,0.40462]
[1756680242759,0.4817,4449.2,4449.1,3.2078]
[1756680242965,0.2004,4449.2,4448.4,3.2078]
[1756680243166,0.2004,4449.2,4448.5,0.28587456]
[1756680243371,0.2004,4448.7,4448.6,0.28587456]
[1756680243685,0.4817,4448.7,4448.6,0.52487456]
[1756680243870,4.4817,4448.7,4448.6,0.52487456]
[1756680244279,4.4817,4448.7,4448.6,0.239]
[1756680244569,4.4817,4448.7,4448.0,32.384]
[1756680244768,4.4817,4448.7,4446.4,3.83717135]
[1756680244769,0.2004,4446.6,4446.5,0.4001]
[1756680245072,0.4817,4446.6,4446.5,0.4412]
[1756680245764,0.4817,4446.6,4445.3,0.17917438]
[1756680245765,0.4817,4446.0,4445.9,3.409]
[1756680245968,0.4817,4446.0,4445.9,3.9539]
[1756680246165,0.4817,4446.0,4445.9,0.2012]
[1756680246472,0.4817,4446.0,4445.9,0.7461]
[1756680250277,1.761708,4446.0,4445.9,0.7461]
[1756680250478,1.761708,4446.0,4445.9,0.4412]
[1756680250674,1.761708,4446.0,4445.9,0.24]
[1756680250881,1.776908,4446.0,4445.9,0.24]
[1756680251077,0.4966,4445.7,4445.6,3.4979]
[1756680251278,0.4966,4445.7,4445.6,3.9302]
[1756680252482,0.2001,4445.7,4445.6,3.9302]
[1756680252781,0.4966,4445.7,4445.6,3.9302]
[1756680254082,0.4966,4445.7,4445.6,3.9292]
[1756680257183,4.22494,4445.7,4443.7,3.2078]
[1756680257377,0.2777,4444.2,4443.6,0.2901]
[1756680258081,0.2777,4444.2,4443.8,0.182]
[1756680258280,0.19748661,4444.2,4444.1,0.29580686]
[1756680258781,0.19748661,4444.2,4444.1,0.53880686]
[1756680258980,0.19748661,4444.2,4444.1,0.82890686]
[1756680259183,0.19751874,4444.3,4444.2,0.1923]
[1756680259381,0.19751962,4444.3,4444.2,0.4824]
[1756680259578,0.47521962,4444.3,4444.2,0.7254]
[1756680260284,1.75522762,4444.3,4444.2,0.7254]
[1756680260585,1.75522762,4444.3,4444.2,0.4824]
[1756680260977,1.75522762,4444.3,4444.1,0.10350686]
[1756680261278,0.47521962,4444.2,4444.1,0.10350686]
[1756680262177,4.47521962,4444.2,4444.1,0.10350686]
[1756680262387,0.47521962,4444.2,4444.1,0.58590686]
[1756680262782,0.47521962,4444.2,4444.1,0.10350686]
[1756680264383,4.47521962,4444.2,4444.1,0.10350686]
[1756680264579,4.47521962,4444.2,4443.0,0.2901]
[1756680264580,0.1709,4443.1,4443.0,0.4824]
[1756680264781,3.4855,4443.1,4443.0,0.4824]
[1756680265285,4.765508,4443.1,4443.0,0.2901]
[1756680265881,0.2777,4442.9,4442.4,0.2901]
[1756680266088,0.1709,4442.9,4442.8,0.1923]
[1756680266282,0.1709,4442.9,4442.8,0.4824]
[1756680266585,0.2779,4443.0,4442.9,0.4824]
[1756680267283,0.1069,4442.7,4442.2,0.4824]
[1756680267480,4.43984962,4443.0,4442.2,0.4824]
[1756680267481,3.4857,4442.3,4442.2,0.4824]
[1756680267789,0.2779,4442.2,4442.1,9.4824]
[1756680267985,0.171,4442.2,4442.1,9.4824]
[1756680268384,3.61296,4442.3,4442.1,9.4824]
[1756680268385,3.61296,4442.3,4442.2,0.4824]
[1756680269992,3.61296,4442.3,4442.1,9.1923]
[1756680270185,0.1069,4442.2,4442.1,9.0]
[1756680270492,0.2779,4442.2,4442.1,9.4824]
[1756680270685,0.171,4442.2,4442.1,9.4824]
[1756680270890,0.2779,4442.2,4442.1,9.1923]
[1756680271391,0.2779,4442.2,4442.1,9.4824]
[1756680272186,0.2779,4442.2,4442.1,9.0]
[1756680272385,0.2779,4442.2,4442.1,9.4824]
[1756680272885,4.892968,4442.3,4442.2,0.2901]
[1756680273091,4.892968,4442.3,4442.2,0.4824]
[1756680273288,5.170868,4442.3,4442.2,0.4824]
[1756680273489,5.063968,4442.3,4442.2,0.4824]
[1756680273695,4.892968,4442.3,4442.2,0.4824]
[1756680274392,4.487808,4442.3,4442.2,4.4824]
[1756680274694,0.467708,4442.3,4442.2,7.6902]
[1756680275590,0.467708,4442.3,4442.2,3.9332]
[1756680277096,0.467708,4442.3,4442.2,0.7254]
[1756680277299,0.467708,4442.3,4442.2,4.7254]
[1756680278797,0.467708,4442.3,4442.2,4.4824]
[1756680278999,0.953508,4442.3,4442.2,0.7244]
[1756680281097,0.467708,4442.3,4442.2,0.7244]
[1756680281992,0.467708,4442.3,4442.2,4.7244]
[1756680282998,0.467708,4442.3,4442.2,0.7244]
[1756680284902,0.467708,4442.3,4442.2,1.12957]
[1756680285298,0.467708,4442.3,4442.2,0.7244]
[1756680287210,0.65828952,4442.3,4442.2,0.7244]
[1756680288605,0.65828952,4442.3,4442.2,1.12957]
[1756680288806,0.467708,4442.3,4442.2,6.02857]
[1756680289402,0.467708,4442.3,4442.2,6.25368]
[1756680289606,0.2864,4443.6,4443.2,0.40508]
[1756680289806,0.82715328,4443.5,4443.3,0.64607]
[1756680289999,0.18786773,4443.4,4443.3,0.64607]
[1756680290901,0.18786773,4443.4,4443.3,0.241]
[1756680291502,0.18780092,4443.4,4443.3,0.241]